fUST/lending_fUST_20250225
["ID","MTS","AMOUNT","RATE_DAILY","PERIOD"]
[354326755,1740413445906,-192.348582,0.0001643,2]
[354326756,1740413445915,-441.49331,0.0001643,2]
[354326757,1740413445925,-441.49331,0.0001643,2]
[354326758,1740413445936,-151.0,0.0001643,2]
[354326759,1740413445946,-635.069001,0.0001643,2]
[354326760,1740413445955,-635.069001,0.0001643,2]
[354326761,1740413445964,-811.195113,0.0001643,2]
[354326762,1740413445975,-811.195113,0.0001643,2]
[354326763,1740413445984,-235.188863,0.0001643,2]
[354326764,1740413445993,-235.188863,0.0001643,2]
[354326765,1740413446002,-151.0,0.0001643,2]
[354326766,1740413446012,-419.727881,0.0001643,2]
[354326767,1740413446021,-464.757968,0.0001643,2]
[354326768,1740413446030,-419.727881,0.0001643,2]
[354326769,1740413446039,-464.757968,0.0001643,2]
[354326770,1740413446048,-376.434374,0.0001643,2]
[354326771,1740413446058,-376.434374,0.0001643,2]
[354326772,1740413446174,-151.0,0.0001643,2]
[354326773,1740413446184,-151.0,0.0001643,2]
[354326774,1740413446194,-2585.965066,0.0001643,2]
[354326775,1740413446203,-335.905328,0.0001643,2]
[354326776,1740413446212,-335.905328,0.0001643,2]
[354326777,1740413446221,-290.523445,0.0001643,2]
[354326778,1740413446231,-290.523445,0.0001643,2]
[354326779,1740413446240,-151.0,0.0001643,2]
[354326780,1740413446250,-151.0,0.0001643,2]
[354326781,1740413446259,-151.0,0.0001643,2]
[354326782,1740413446268,-1527.764216,0.0001643,2]
[354326783,1740413446278,-291.403152,0.0001643,2]
[354326784,1740413446288,-1527.764216,0.0001643,2]
[354326785,1740413446297,-291.403152,0.0001643,2]
[354326786,1740413446307,-713.976372,0.0001643,2]
[354326787,1740413446316,-713.976372,0.0001643,2]
[354326788,1740413446325,-1971.565386,0.0001643,2]
[354326789,1740413446334,-1971.565386,0.0001643,2]
[354326790,1740413446343,-498.202622,0.0001643,2]
[354326791,1740413446353,-860.162798,0.0001643,2]
[354326792,1740413446362,-498.202622,0.0001643,2]
[354326793,1740413446372,-860.162798,0.0001643,2]
[354326794,1740413446381,-151.0,0.0001643,2]
[354326795,1740413446391,-4427.581372,0.0001643,2]
[354326796,1740413446401,-4427.581372,0.0001643,2]
[354326797,1740413446411,-347.279556,0.0001643,2]
[354326798,1740413446420,-347.279556,0.0001643,2]
[354326799,1740413446429,-500.0,0.00016438,2]
[354326800,1740413446439,-787.44,0.00016438,2]
[354326801,1740413446449,-787.44,0.00016438,2]
[354326802,1740413446458,-787.44,0.00016438,2]
[354326803,1740413446467,-787.44,0.00016438,2]
[354326804,1740413446477,-787.44,0.00016438,2]
[354326805,1740413446487,-787.44,0.00016438,2]
[354326806,1740413446497,-787.44,0.00016438,2]
[354326807,1740413446506,-787.44,0.00016438,2]
[354326808,1740413446515,-787.44,0.00016438,2]
[354326809,1740413446524,-787.44,0.00016438,2]
[354326810,1740413446534,-787.44,0.00016438,2]
[354326811,1740413446543,-787.44,0.00016438,2]
[354326812,1740413446553,-787.44,0.00016438,2]
[354326813,1740413446563,-787.44,0.00016438,2]
[354326814,1740413446572,-787.44,0.00016438,2]
[354326815,1740413446582,-787.44,0.00016438,2]
[354326816,1740413446592,-787.44,0.00016438,2]
[354326817,1740413446602,-787.44,0.00016438,2]
[354326818,1740413446611,-787.44,0.00016438,2]
[354326819,1740413446621,-787.44,0.00016438,2]
[354326820,1740413446631,-787.44,0.00016438,2]
[354326821,1740413446641,-787.44,0.00016438,2]
[354326822,1740413446653,-787.44,0.00016438,2]
[354326823,1740413446663,-787.56552241,0.00016438,2]
[354326824,1740413446673,-500.0,0.00016438,2]
[354326825,1740413446683,-500.0,0.00016438,2]
[354326826,1740413446694,-500.0,0.00016438,2]
[354326827,1740413446703,-500.0,0.00016438,2]
[354326828,1740413446713,-500.0,0.00016438,2]
[354326829,1740413446722,-500.0,0.00016438,2]
[354326830,1740413446733,-500.0,0.00016438,2]
[354326831,1740413446742,-500.0,0.00016438,2]
[354326832,1740413446751,-500.0,0.00016438,2]
[354326833,1740413446761,-500.0,0.00016438,2]
[354326834,1740413446771,-500.0,0.00016438,2]
[354326835,1740413446783,-500.0,0.00016438,2]
[354326836,1740413446795,-500.0,0.00016438,2]
[354326837,1740413446804,-500.0,0.00016438,2]
[354326838,1740413446813,-500.0,0.00016438,2]
[354326839,1740413446823,-500.0,0.00016438,2]
[354326840,1740413446832,-500.0,0.00016438,2]
[354326841,1740413446842,-500.0,0.00016438,2]
[354326842,1740413446854,-500.0,0.00016438,2]
[354326843,1740413446864,-599.81202263,0.00016438,2]
[354326844,1740413446874,-344.81,0.00016438,2]
[354326845,1740413446886,-344.81,0.00016438,2]
[354326846,1740413446896,-344.81,0.00016438,2]
[354326847,1740413446906,-344.81,0.00016438,2]
[354326848,1740413446915,-344.81,0.00016438,2]
[354326849,1740413446925,-344.81,0.00016438,2]
[354326850,1740413446935,-344.81,0.00016438,2]
[354326851,1740413446944,-344.81,0.00016438,2]
[354326852,1740413446955,-344.81,0.00016438,2]
[354326853,1740413446964,-344.81,0.00016438,2]
[354326854,1740413446974,-344.81,0.00016438,2]
[354326855,1740413446983,-344.81,0.00016438,2]
[354326856,1740413446994,-344.81,0.00016438,2]
[354326857,1740413447003,-344.81,0.00016438,2]
[354326858,1740413447013,-344.81,0.00016438,2]
[354326859,1740413447022,-344.81,0.00016438,2]
[354326860,1740413447032,-344.81,0.00016438,2]
[354326861,1740413447041,-344.81,0.00016438,2]
[354326862,1740413447051,-344.81,0.00016438,2]
[354326863,1740413447060,-344.81,0.00016438,2]
[354326864,1740413447069,-344.81,0.00016438,2]
[354326865,1740413447079,-344.81,0.00016438,2]
[354326866,1740413447089,-344.81,0.00016438,2]
[354326867,1740413447099,-344.90163492,0.00016438,2]
[354326868,1740413447108,-150.24,0.00016438,2]
[354326869,1740413447118,-500.0,0.00016438,2]
[354326870,1740413447127,-500.0,0.00016438,2]
[354326871,1740413447137,-500.0,0.00016438,2]
[354326872,1740413447146,-639.09685785,0.00016438,2]
[354326873,1740413447155,-477.74376429,0.00016438,2]
[354326874,1740413447165,-1185.87,0.00016438,2]
[354326875,1740413447174,-1185.87,0.00016438,2]
[354326876,1740413447183,-1185.87,0.00016438,2]
[354326877,1740413447193,-500.0,0.00016438,2]
[354326878,1740413447202,-1185.87,0.00016438,2]
[354326879,1740413447211,-1185.87,0.00016438,2]
[354326880,1740413447221,-1185.87,0.00016438,2]
[354326881,1740413447230,-1185.87,0.00016438,2]
[354326882,1740413447239,-1185.87,0.00016438,2]
[354326883,1740413447249,-1185.87,0.00016438,2]
[354326884,1740413447259,-1185.87,0.00016438,2]
[354326885,1740413447268,-1185.87,0.00016438,2]
[354326886,1740413447278,-500.0,0.00016438,2]
[354326887,1740413447288,-1185.87,0.00016438,2]
[354326888,1740413447299,-150.24,0.00016438,2]
[354326889,1740413447309,-1185.87,0.00016438,2]
[354326890,1740413447318,-1185.87,0.00016438,2]
[354326891,1740413447328,-1185.87,0.00016438,2]
[354326892,1740413447338,-150.24,0.00016438,2]
[354326893,1740413447348,-1185.87,0.00016438,2]
[354326894,1740413447357,-1185.87,0.00016438,2]
[354326895,1740413447367,-1185.87,0.00016438,2]
[354326896,1740413447376,-1185.87,0.00016438,2]
[354326897,1740413447389,-1185.87,0.00016438,2]
[354326898,1740413447399,-1185.87,0.00016438,2]
[354326899,1740413447409,-1185.87,0.00016438,2]
[354326900,1740413447419,-1185.87,0.00016438,2]
[354326901,1740413447428,-1185.91835002,0.00016438,2]
[354326902,1740413447438,-500.0,0.00016438,2]
[354326903,1740413447448,-151.05550615,0.00016438,2]
[354326904,1740413447458,-500.0,0.00016438,2]
[354326905,1740413447467,-150.24,0.00016438,2]
[354326906,1740413447477,-500.0,0.00016438,2]
[354326907,1740413447486,-160.70284111,0.00016438,2]
[354326908,1740413447496,-500.0,0.00016438,2]
[354326909,1740413447506,-150.24,0.00016438,2]
[354326910,1740413447516,-500.0,0.00016438,2]
[354326911,1740413447525,-500.0,0.00016438,2]
[354326912,1740413447535,-452.669516,0.00016438,2]
[354326913,1740413447545,-452.669516,0.00016438,2]
[354326914,1740413447555,-452.669516,0.00016438,2]
[354326915,1740413447565,-452.669516,0.00016438,2]
[354326916,1740413447575,-500.0,0.00016438,2]
[354326917,1740413447584,-544.07181612,0.0001644,2]
[354326918,1740413447594,-383.33062929,0.00016473,2]
[354326919,1740413447603,-500.0,0.00016473,2]
[354326920,1740413447613,-500.07339296,0.0001648,5]
[354326921,1740413447622,-391.12872952,0.00016487,5]
[354326922,1740413447631,-43035.10169965,0.00016487,2]
[354326923,1740413447645,-175.0624,0.000165,2]
[354326924,1740413447660,-175.0624,0.000165,2]
[354326925,1740413447670,-10001.50846146,0.000165,2]
[354326926,1740413447965,-153.0,0.00014252,2]
[354326927,1740413447975,-15750.88041,0.000165,2]
[354326934,1740414174911,188.98794,9.041e-05,2]
[354326937,1740414434118,-179.71246006,0.00013159,2]
[354326938,1740414434141,-140.44441426,0.00013699,2]
[354326989,1740414632039,-344.45116818,0.00013861,2]
[354326990,1740414632049,-431.5416014,0.00014001,2]
[354326991,1740414632059,-300.0,0.00014248,2]
[354326992,1740414632068,-213.31895283,0.00014249,2]
[354326993,1740414632092,-1195.1999999,0.00014249,2]
[354326994,1740414632105,-18193.3971134,0.00014249,2]
[354326995,1740414632114,-500.0,0.00014325,2]
[354326996,1740414632123,-500.0,0.00014368,2]
[354326997,1740414632133,-576.77,0.00014368,2]
[354326998,1740414632142,-564.21,0.00014368,2]
[354326999,1740414632152,-500.0,0.00014407,2]
[354327000,1740414632161,-504.10493803,0.00014412,2]
[354327001,1740414632171,-174.71,0.00014414,2]
[354327002,1740414632181,-174.71,0.0001442,2]
[354327003,1740414632190,-174.71,0.0001442,2]
[354327004,1740414632199,-151.0,0.00014421,2]
[354327005,1740414632209,-153.0,0.00014423,2]
[354327006,1740414632219,-153.0,0.00014423,2]
[354327007,1740414632228,-153.0,0.00014423,2]
[354327008,1740414632369,-153.0,0.00014423,2]
[354327009,1740414632382,-153.0,0.00014423,2]
[354327010,1740414632392,-153.0,0.00014423,2]
[354327011,1740414632402,-153.0,0.00014423,2]
[354327012,1740414632411,-153.0,0.00014423,2]
[354327013,1740414632420,-153.0,0.00014423,2]
[354327014,1740414632429,-153.0,0.00014423,2]
[354327015,1740414632438,-153.0,0.00014423,2]
[354327016,1740414632447,-153.0,0.00014423,2]
[354327017,1740414632456,-153.0,0.00014423,2]
[354327018,1740414632465,-153.0,0.00014423,2]
[354327019,1740414632475,-153.0,0.00014423,2]
[354327020,1740414632484,-153.0,0.00014423,2]
[354327021,1740414632493,-153.0,0.00014423,2]
[354327022,1740414632502,-153.0,0.00014423,2]
[354327023,1740414632512,-153.0,0.00014423,2]
[354327024,1740414632521,-153.0,0.00014423,2]
[354327025,1740414632530,-153.0,0.00014423,2]
[354327026,1740414632540,-153.0,0.00014423,2]
[354327027,1740414632549,-153.0,0.00014423,2]
[354327028,1740414632558,-153.0,0.00014423,2]
[354327029,1740414632568,-153.0,0.00014423,2]
[354327030,1740414632577,-153.0,0.00014423,2]
[354327031,1740414632586,-153.0,0.00014423,2]
[354327032,1740414632595,-153.0,0.00014423,2]
[354327033,1740414632604,-153.0,0.00014423,2]
[354327034,1740414632613,-153.0,0.00014423,2]
[354327035,1740414632623,-20000.0,0.0001443,2]
[354327036,1740414632635,-174.71,0.0001444,2]
[354327037,1740414632644,-500.0,0.0001445,2]
[354327038,1740414632653,-576.77,0.0001445,2]
[354327039,1740414632662,-564.21,0.0001445,2]
[354327040,1740414632672,-500.0,0.00014533,2]
[354327041,1740414632682,-576.77,0.00014533,2]
[354327042,1740414632692,-564.21,0.00014533,2]
[354327043,1740414632702,-1254.92,0.000146,2]
[354327044,1740414632711,-160.13792081,0.000146,2]
[354327045,1740414632721,-500.0,0.00014615,2]
[354327046,1740414632731,-576.77,0.00014615,2]
[354327047,1740414632741,-564.21,0.00014615,2]
[354327048,1740414632751,-569.177,0.00014654,2]
[354327049,1740414632760,-500.0,0.00014697,2]
[354327050,1740414632770,-576.77,0.00014697,2]
[354327051,1740414632780,-564.21,0.00014697,2]
[354327052,1740414632789,-500.0,0.00014779,2]
[354327053,1740414632800,-576.77,0.00014779,2]
[354327054,1740414632809,-564.21,0.00014779,2]
[354327055,1740414632819,-2287.0,0.00014785,2]
[354327056,1740414632829,-396.0,0.00014785,2]
[354327057,1740414632839,-150.0,0.00014785,2]
[354327058,1740414632848,-500.0,0.00014861,2]
[354327059,1740414632858,-576.77,0.00014861,2]
[354327060,1740414632867,-564.21,0.00014861,2]
[354327061,1740414632877,-500.0,0.00014944,2]
[354327062,1740414632888,-576.77,0.00014944,2]
[354327063,1740414632897,-564.21,0.00014944,2]
[354327064,1740414632907,-1500.0,0.00014978,2]
[354327065,1740414632916,-1203.08665428,0.00015,2]
[354327066,1740414632926,-53389.03778268,0.00015,2]
[354327067,1740414632937,-38854.76776096,0.00015,2]
[354327068,1740414632949,-16691.38873626,0.00015,2]
[354327069,1740414632959,-500.0,0.00015026,2]
[354327070,1740414632969,-576.77,0.00015026,2]
[354327071,1740414632979,-564.21,0.00015026,2]
[354327072,1740414632988,-500.0,0.00015108,2]
[354327073,1740414632997,-576.77,0.00015108,2]
[354327074,1740414633008,-564.21,0.00015108,2]
[354327075,1740414633027,-545.97089356,0.00015131,2]
[354327076,1740414633037,-500.0,0.0001519,2]
[354327077,1740414633048,-576.77,0.0001519,2]
[354327078,1740414633057,-564.21,0.0001519,2]
[354327079,1740414633071,-545.97089356,0.00015231,2]
[354327080,1740414633081,-500.0,0.00015272,2]
[354327081,1740414633091,-576.77,0.00015272,2]
[354327082,1740414633103,-564.21,0.00015272,2]
[354327083,1740414633113,-545.97089356,0.00015331,2]
[354327084,1740414633123,-500.0,0.00015355,2]
[354327085,1740414633133,-576.77,0.00015355,2]
[354327086,1740414633145,-564.21,0.00015355,2]
[354327087,1740414633155,-545.97089356,0.00015431,2]
[354327088,1740414633166,-500.0,0.00015437,2]
[354327089,1740414633179,-576.77,0.00015437,2]
[354327090,1740414633188,-564.21,0.00015437,2]
[354327091,1740414633199,-500.0,0.00015519,2]
[354327092,1740414633209,-576.77,0.00015519,2]
[354327093,1740414633219,-564.21,0.00015519,2]
[354327094,1740414633231,-545.97089356,0.00015531,2]
[354327095,1740414633241,-500.0,0.00015601,2]
[354327096,1740414633252,-576.77,0.00015601,2]
[354327097,1740414633262,-564.21,0.00015601,2]
[354327098,1740414633273,-420.0,0.00015606,2]
[354327099,1740414633282,-545.97089356,0.00015631,2]
[354327100,1740414633292,-398.2922512,0.00015641,2]
[354327101,1740414633302,-500.0,0.00015683,2]
[354327102,1740414633312,-576.77,0.00015683,2]
[354327103,1740414633323,-564.21,0.00015683,2]
[354327104,1740414633333,-545.97089356,0.00015731,2]
[354327105,1740414633343,-500.0,0.00015766,2]
[354327106,1740414633353,-576.77,0.00015766,2]
[354327107,1740414633364,-564.21,0.00015766,2]
[354327108,1740414633375,-188.98794,0.00015775,2]
[354327109,1740414633387,-545.97089356,0.00015831,2]
[354327110,1740414633397,-500.0,0.00015848,2]
[354327111,1740414633407,-576.77,0.00015848,2]
[354327112,1740414633417,-564.21,0.00015848,2]
[354327113,1740414633427,-355.3763574,0.00015855,2]
[354327114,1740414633437,-355.3763574,0.00015855,2]
[354327115,1740414633447,-355.3763574,0.00015855,2]
[354327116,1740414633456,-355.3763574,0.00015855,2]
[354327117,1740414633466,-355.3763574,0.00015855,2]
[354327118,1740414633475,-355.3763574,0.00015855,2]
[354327119,1740414633484,-355.3763574,0.00015855,2]
[354327120,1740414633494,-355.3763574,0.00015855,2]
[354327121,1740414633504,-355.3763574,0.00015855,2]
[354327122,1740414633513,-355.3763574,0.00015855,2]
[354327123,1740414633522,-534.406987,0.00015855,2]
[354327124,1740414633532,-500.0,0.0001593,2]
[354327125,1740414633542,-576.77,0.0001593,2]
[354327126,1740414633552,-564.21,0.0001593,2]
[354327127,1740414633563,-545.97089356,0.00015931,2]
[354327128,1740414633574,-14793.86304862,0.0001599,2]
[354327129,1740414633586,-9343.55883709,0.00016,2]
[354327130,1740414633599,-24460.24058379,0.00016,2]
[354327131,1740414633614,-4852.00571664,0.00016,2]
[354327149,1740414637863,-4014.15386362,0.00016,2]
[354327235,1740414640144,-538.0,0.00014785,2]
[354327237,1740414640153,-16673.59983595,0.00016,2]
[354327239,1740414640163,-500.0,0.00016,2]
[354327241,1740414640172,-393.04161473,0.00016012,2]
[354327242,1740414640181,-576.77,0.00016012,2]
[354327244,1740414640190,-564.21,0.00016012,2]
[354327246,1740414640199,-545.97089356,0.00016031,2]
[354327248,1740414640209,-193.68974697,0.00016089,2]
[354327250,1740414640218,-576.77,0.00016094,2]
[354327252,1740414640227,-564.21,0.00016094,2]
[354327254,1740414640236,-545.97089356,0.00016131,2]
[354327256,1740414640245,-500.0,0.00016173,2]
[354327258,1740414640255,-500.0,0.00016173,2]
[354327259,1740414640264,-500.0,0.00016173,2]
[354327260,1740414640273,-576.77,0.00016176,2]
[354327261,1740414640282,-564.21,0.00016176,2]
[354327263,1740414640292,-500.0,0.00016179,2]
[354327264,1740414640301,-635.22734509,0.00016179,2]
[354327266,1740414640310,-500.0,0.00016179,2]
[354327267,1740414640319,-500.0,0.00016179,2]
[354327269,1740414640329,-500.0,0.00016179,2]
[354327270,1740414640339,-500.0,0.00016179,2]
[354327271,1740414640348,-500.0,0.00016179,2]
[354327272,1740414640357,-500.0,0.00016179,2]
[354327273,1740414640366,-110245.73723757,0.0001618,2]
[354327274,1740414640378,-3003.9,0.0001618,2]
[354327275,1740414640389,-61352.86899271,0.0001618,2]
[354327276,1740414640405,-18931.10000001,0.0001618,2]
[354327287,1740414642951,-14225.24683371,0.0001618,2]
[354327288,1740414642964,-980.11956,0.0001618,2]
[354327289,1740414642973,-499.0,0.00016189,2]
[354327290,1740414642982,-45861.89118728,0.0001619,2]
[354327318,1740414645945,-1528.0,0.0001619,2]
[354327323,1740415343207,170.089146,9.041e-05,2]
[354327354,1740415832246,-166.0,0.0001332,2]
[354327355,1740415832257,-300.0,0.00013824,2]
[354327356,1740415832268,-19601.91606613,0.00013825,2]
[354327357,1740415832278,-500.0,0.00013901,2]
[354327358,1740415832288,-151.0,0.00013912,2]
[354327359,1740415832298,-576.79,0.0001392,2]
[354327360,1740415832308,-564.27257897,0.0001392,2]
[354327363,1740415832318,-500.0,0.00013983,2]
[354327365,1740415832329,-3223.24424561,0.00013987,2]
[354327367,1740415832338,-3223.24424561,0.0001399,2]
[354327369,1740415832348,-3223.24424561,0.00013996,2]
[354327371,1740415832359,-14162.8149043,0.00014,7]
[354327373,1740415832369,-500.0,0.00014065,2]
[354327375,1740415832379,-500.0,0.00014147,2]
[354327377,1740415832390,-500.0,0.00014229,2]
[354327379,1740415832404,-382.37793492,0.0001427,2]
[354327382,1740415832414,-500.0,0.00014312,2]
[354327384,1740415832424,-500.0,0.00014333,2]
[354327386,1740415832436,-500.0,0.00014333,2]
[354327388,1740415832446,-302.76109046,0.00014333,2]
[354327390,1740415832456,-500.0,0.00014333,2]
[354327392,1740415832466,-500.0,0.00014394,2]
[354327393,1740415832477,-500.0,0.00014412,2]
[354327394,1740415832488,-153.0,0.00014458,2]
[354327395,1740415832498,-153.0,0.00014458,2]
[354327396,1740415832508,-153.0,0.00014458,2]
[354327397,1740415832518,-153.0,0.00014458,2]
[354327398,1740415832528,-153.0,0.00014458,2]
[354327399,1740415832539,-153.0,0.00014458,2]
[354327400,1740415832549,-153.0,0.00014458,2]
[354327401,1740415832558,-153.0,0.00014458,2]
[354327402,1740415832568,-153.0,0.00014458,2]
[354327403,1740415832578,-153.0,0.00014458,2]
[354327404,1740415832588,-153.0,0.00014458,2]
[354327405,1740415832597,-153.0,0.00014458,2]
[354327406,1740415832607,-153.0,0.00014458,2]
[354327407,1740415832617,-153.0,0.00014458,2]
[354327408,1740415832627,-153.0,0.00014458,2]
[354327409,1740415832638,-153.0,0.00014458,2]
[354327410,1740415832648,-153.0,0.00014458,2]
[354327411,1740415832658,-153.0,0.00014458,2]
[354327412,1740415832668,-153.0,0.00014458,2]
[354327413,1740415832678,-153.0,0.00014458,2]
[354327414,1740415832688,-153.0,0.00014458,2]
[354327415,1740415832698,-153.0,0.00014458,2]
[354327416,1740415832707,-153.0,0.00014458,2]
[354327417,1740415832717,-153.0,0.00014458,2]
[354327418,1740415832727,-153.0,0.00014458,2]
[354327419,1740415832737,-153.0,0.00014458,2]
[354327420,1740415832747,-153.0,0.00014458,2]
[354327421,1740415832757,-500.0,0.00014476,2]
[354327422,1740415832767,-226.00000001,0.00014558,2]
[354327423,1740415832778,-549.588,0.0001464,2]
[354327424,1740415832788,-1236.31,0.000148,2]
[354327425,1740415832798,-150.0,0.00015026,2]
[354327426,1740415832808,-538.0,0.00015026,2]
[354327427,1740415832819,-1970.0,0.00015026,2]
[354327428,1740415832829,-2287.0,0.00015026,2]
[354327429,1740415832839,-250.0,0.00015026,2]
[354327430,1740415832850,-396.0,0.00015026,2]
[354327431,1740415832861,-547.95123341,0.00015115,2]
[354327432,1740415832871,-240.0,0.00015148,2]
[354327433,1740415832881,-547.95123341,0.00015215,2]
[354327434,1740415832892,-547.95123341,0.00015315,2]
[354327435,1740415832902,-547.95123341,0.00015415,2]
[354327436,1740415832912,-547.95123341,0.00015515,2]
[354327437,1740415832922,-547.95123341,0.00015615,2]
[354327438,1740415832932,-557.4308118,0.00015697,2]
[354327439,1740415832942,-547.95123341,0.00015715,2]
[354327440,1740415832952,-170.089146,0.00015775,2]
[354327441,1740415833140,-547.95123341,0.00015815,2]
[354327442,1740415833152,-306.0,0.00015855,2]
[354327443,1740415833162,-306.0,0.00015855,2]
[354327444,1740415833172,-154.8331553,0.00015855,2]
[354327445,1740415833182,-557.4308118,0.00015855,2]
[354327446,1740415833191,-154.8331553,0.00015855,2]
[354327447,1740415833201,-154.8331553,0.00015855,2]
[354327448,1740415833211,-154.6861621,0.00015855,2]
[354327449,1740415833220,-322.1418882,0.00015855,2]
[354327450,1740415833231,-557.0208381,0.00015855,2]
[354327451,1740415833240,-547.95123341,0.00015915,2]
[354327452,1740415833250,-11611.31791686,0.00015972,2]
[354327453,1740415833260,-547.95123341,0.00016015,2]
[354327454,1740415833269,-547.95123341,0.00016115,2]
[354327455,1740415833279,-133498.49419884,0.0001619,2]
[354327456,1740415833292,-1967.3,0.0001619,2]
[354327462,1740415838032,-3123.08693016,0.0001619,2]
[354327463,1740415838041,-499.0,0.00016199,2]
[354327464,1740415838051,-547.95123341,0.00016215,2]
[354327465,1740415838060,-3973.04912436,0.00016256,2]
[354327466,1740415838072,-2022.5943027,0.00016256,2]
[354327467,1740415838084,-844.19082374,0.00016256,2]
[354327468,1740415838096,-15784.35736707,0.00016256,2]
[354327469,1740415838106,-547.95123341,0.00016315,2]
[354327470,1740415838115,-2000.0,0.000164,2]
[354327471,1740415838125,-158.45,0.000164,31]
[354327472,1740415838135,-158.45,0.000164,31]
[354327473,1740415838144,-158.45,0.000164,31]
[354327474,1740415838154,-158.45,0.000164,31]
[354327475,1740415838163,-158.45,0.000164,31]
[354327476,1740415838172,-92.00110755,0.000164,31]
[354327477,1740415838183,-66.44889245,0.000164,31]
[354327478,1740415838193,-158.45,0.000164,31]
[354327479,1740415838202,-547.95123341,0.00016415,2]
[354327480,1740415838211,-500.0,0.00016438,2]
[354327481,1740415838221,-500.0,0.00016438,2]
[354327482,1740415838230,-500.0,0.00016438,2]
[354327483,1740415838239,-717.23486914,0.00016477,2]
[354327484,1740415838250,-3157.4254304,0.00016477,2]
[354327485,1740415838262,-65419.78026496,0.00016477,2]
[354327486,1740415838271,-1974.40867056,0.00016487,2]
[354327487,1740415838280,-151.0,0.00016499,2]
[354327488,1740415838289,-2975.49457887,0.000165,2]
[354327493,1740415840230,-2639.24654967,0.000165,2]
[354327494,1740415840239,-151.0,0.000165,2]
[354327495,1740415840249,-151.0,0.000165,2]
[354327496,1740415840258,-151.0,0.000165,2]
[354327497,1740415840267,-151.0,0.000165,2]
[354327498,1740415840276,-151.0,0.000165,2]
[354327499,1740415840285,-151.0,0.000165,2]
[354327500,1740415840295,-168.975352,0.000165,2]
[354327501,1740415840304,-168.975352,0.000165,2]
[354327502,1740415840313,-150.27,0.000165,2]
[354327503,1740415840322,-500.0,0.000165,2]
[354327504,1740415840331,-16195.30215637,0.000165,7]
[354327519,1740415843213,-1829.22733402,0.000165,7]
[354327532,1740416424156,165.654473,9.041e-05,2]
[354327536,1740416847089,-3512.56561323,0.00013793,2]
[354327566,1740417032422,-19601.91606613,0.00013765,2]
[354327567,1740417032433,-151.0,0.00013848,2]
[354327568,1740417032442,-500.0,0.00013862,2]
[354327570,1740417032452,-500.0,0.00013873,2]
[354327571,1740417032462,-592.92,0.00013873,2]
[354327573,1740417032471,-257.14901135,0.00013873,2]
[354327582,1740417038216,-183.96868398,0.00013873,2]
[354327583,1740417038225,-500.0,0.00013873,2]
[354327584,1740417038235,-500.0,0.00013881,2]
[354327585,1740417038244,-500.0,0.0001391,2]
[354327586,1740417038253,-500.0,0.00013944,2]
[354327587,1740417038262,-500.0,0.00013956,2]
[354327588,1740417038271,-500.0,0.00014026,2]
[354327589,1740417038281,-500.0,0.00014038,2]
[354327590,1740417038290,-71.30052127,0.00014109,2]
[354327591,1740417038301,-428.69947873,0.00014109,2]
[354327592,1740417038311,-500.0,0.0001412,2]
[354327593,1740417038320,-426.16,0.00014191,2]